Cogmind - Beta 14 @@@ ROGUE MODE // 2024.10.13 @ 21:49:27 Player: hoganstuff Result: Self-destructed Performance ------------- Evolutions (4) 2000 Regions Visited (6) 1200 Robots Destroyed (183) 915 Value Destroyed (5218) 5218 Prototype IDs (5) 100 Alien Tech Used (0) 0 Bonus (1389) 1389 TOTAL SCORE: 10822 Bonus ------- High Alert Combat Kills 1389 Cogmind --------- Core Integrity 644/850 Matter 65/300 Energy 290/290 System Corruption 0% Temperature Cool (21) Movement Treading (225) Ox1 Location -6/Factory Parts ------- > --- POWER (2) -------- Reinforced Deuterium Engine > --- PROPULSION (4) --- Advanced Treads > --- UTILITY (5) ------ Improved Cooling System Large Storage Unit Weapon Cycler > --- WEAPON (4) ------- (None) > --- INVENTORY (15) --- Cryofiber Web Advanced Heat Sink Improved Cooling System Medium Matter Pod (32) Improved Signal Interpreter Particle Charger Weapon Cycler Force Booster Heavy Laser Heavy Laser Gauss Rifle Faulty Antimatter Cannon Great Maul Power Maul Peak State ------------ > --- POWER ------------ Light Nuclear Core Reinforced Deuterium Engine > --- PROPULSION ------- Light Treads Advanced Treads Advanced Treads Advanced Treads > --- UTILITY ---------- Improved Cooling System Large Storage Unit Matter Filter Weapon Cycler Improved Medium Armor Plating > --- WEAPON ----------- Gauss Rifle Gauss Rifle Advanced Assault Cannon Advanced Assault Cannon > --- INVENTORY -------- Cryofiber Web Advanced Heat Sink Medium Matter Pod Improved Signal Interpreter Particle Charger Weapon Cycler Force Booster Arc Projector Heavy Laser Missile Launcher Heavy Rocket Launcher Great Maul [Rating: 54] Favorites ----------- Power Nuclear Core Engine Improved Ion Engine Power Core Nuclear Core Propulsion Advanced Treads Treads Advanced Treads Leg Aluminum Leg Utility Large Storage Unit Device Improved Cooling System Storage Large Storage Unit Processor Transport Network Coupler Protection Improved Medium Armor Plating Weapon Advanced Assault Cannon Energy Gun Particle Gun Energy Cannon Advanced Beam Cannon Ballistic Gun Gauss Rifle Ballistic Cannon Advanced Assault Cannon Launcher Rocket Launcher Impact Weapon Great Maul Slashing Weapon Katana Build | -11 -10 -9 -9 -8 -7 -6 ------- Run | Yrd Mat Mat Min Mat Fac Fac Slots Evolved 8 | . . 2 . 2 2 2 Power 1 | . . . . . . 1 Propulsion 2 | . . . . 1 . 1 Utility 3 | . . 1 . 1 1 . Weapon 2 | . . 1 . . 1 . Parts Attached 108 | 6 2 27 5 37 19 12 Power 14 | 1 . 4 1 5 2 1 Engine 8 | 1 . 4 . 2 1 . Core 6 | . . . 1 3 1 1 Reactor . | . . . . . . . Propulsion 26 | 2 . 9 1 9 3 2 Treads 15 | . . 2 . 8 3 2 Leg 11 | 2 . 7 1 1 . . Wheel . | . . . . . . . Hover . | . . . . . . . Flight . | . . . . . . . Utility 30 | 1 1 4 2 11 8 3 Device 15 | . 1 1 2 3 6 2 Storage 4 | 1 . . . 3 . . Processor 2 | . . 1 . 1 . . Hackware . | . . . . . . . Protection 9 | . . 2 . 4 2 1 Artifact . | . . . . . . . Weapon 38 | 2 1 10 1 12 6 6 Energy Gun 5 | . . 1 . 3 . 1 Energy Cannon 2 | . . 2 . . . . Ballistic Gun 13 | 2 . 4 1 3 2 1 Ballistic Cannon 8 | . 1 . . 2 4 1 Launcher 5 | . . 2 . . . 3 Special Weapon . | . . . . . . . Impact Weapon 1 | . . . . 1 . . Slashing Weapon 4 | . . 1 . 3 . . Piercing Weapon . | . . . . . . . Special Melee Weapon . | . . . . . . . Unidentified Prototypes 4 | . . 1 . 2 . 1 Corrupted Parts 1 | . . 1 . . . . System Corruption 1 | . . 1 . . . . Parts Lost 42 | . . 8 2 9 9 14 Power 4 | . . 1 . 2 1 . Propulsion 11 | . . 1 1 3 2 4 Utility 10 | . . 1 1 2 2 4 Weapon 17 | . . 5 . 2 4 6 Highest Loss Streak 4 | . . 2 2 3 2 4 To Critical Strikes 1 | . . 1 . . . . Average Slot Usage (%) 95 | . 92 93 97 97 99 86 Engine 5 | . 14 10 1 3 . 6 Core 4 | . . . 9 5 6 5 Treads 16 | . . 6 . 23 22 17 Leg 6 | . 28 15 22 2 . . Device 11 | . 7 2 18 10 17 15 Storage 7 | . 14 8 . 6 7 6 Processor 5 | . . 10 11 9 . . Protection 8 | . . 10 1 8 11 8 Energy Cannon 1 | . . 6 . . . . Ballistic Gun 9 | . 20 14 18 6 1 13 Ballistic Cannon 11 | . 7 3 . 9 26 8 Launcher 1 | . . 1 11 . . 1 Impact Weapon 1 | . . . . 2 1 . Slashing Weapon 2 | . . 1 3 5 . . Peak Build Rating 54 | 6 7 19 19 38 51 54 Average Rating 31 | 4 6 13 17 32 47 45 On Entrance 19 | . 6 7 19 19 37 50 Naked Turns . | . . . . . . . Heaviest Build 73 | 11 14 27 22 49 68 73 Greatest Support 86 | 20 20 40 26 66 72 86 Greatest Overweight (x) 7 | . . 7 . 2 1 2 Average Overweight (x) . | . . . . . . . Largest Inventory Capacity 15 | 8 8 8 5 15 15 15 Average Capacity 11 | 6 8 7 5 12 15 15 Most Carried 15 | . 2 8 5 15 15 15 Average Carried 9 | . 1 5 4 9 14 12 Final Capacity 15 | 8 8 5 5 15 15 15 Final Carried 14 | . 2 5 5 14 13 14 Class Distribution -------------------- 33% | Mutant 24% | Tank 12% | Scavenger-Mutant 12% | Scavenger-Tank 9% | Gunner 3% | Scavenger-Skirmisher 3% | Scavenger-Gunner Dominant Class ---------------- Mutant | -10/Materials Scavenger-Tank | -9/Materials Scavenger-Skirmisher | -9/Mines Mutant | -8/Materials Tank | -7/Factory Tank | -6/Factory Resources | -11 -10 -9 -9 -8 -7 -6 ----------- Run | Yrd Mat Mat Min Mat Fac Fac Matter Collected 4192 | 187 26 707 126 825 1191 1130 Remotely . | . . . . . . . Salvage Created 6086 | . 68 1359 154 1875 987 1643 Parts 342 | . 9 99 20 92 53 69 Haulers Intercepted 7 | . . 3 . 2 . 2 Recyclers Shooed 16 | . . 1 . . 1 14 Parts Field Recycled . | . . . . . . . Retrieved Matter . | . . . . . . . Parts Self-Destructed . | . . . . . . . Prevented . | . . . . . . . Kills | -11 -10 -9 -9 -8 -7 -6 ------- Run | Yrd Mat Mat Min Mat Fac Fac Combat Hostiles Destroyed 127 | . 4 36 9 37 26 15 Melee 21 | . . . . 20 1 . Guns 34 | . 2 19 2 4 . 7 Cannons 53 | . 2 13 . 10 24 4 AOE 17 | . . 4 7 1 1 4 Classes Destroyed 15 | . 2 9 1 1 2 . Worker 18 | . . 1 1 3 2 11 Builder 14 | . . 1 . 4 2 7 Tunneler 1 | . . . 1 . . . Hauler 7 | . . 3 . 2 . 2 Recycler 9 | . . 1 . 1 2 5 Operator 2 | . . . . 1 . 1 Watcher 9 | . . 2 . 3 1 3 Swarmer 35 | . 3 15 5 6 6 . Grunt 63 | . 1 12 4 27 7 12 Brawler 5 | . . 1 . . 4 . Duelist 3 | . . 2 . . . 1 Protector 1 | . . 1 . . . . Sentry 13 | . . 5 . 4 4 . Hunter 4 | . . . . . 2 2 Programmer 3 | . . . . . 3 . Best Kill Streak 10 | . 1 6 4 7 6 10 Combat Bots Only 6 | . 1 6 4 5 4 3 Max Kills in Single Turn 6 | . 1 2 4 1 1 6 Gunslinging 1 | . . 1 . . . . Exploded 4 | . . 2 4 1 1 1 Melee 1 | . . . . 1 1 . Uniques/NPCs Destroyed . | . . . . . . . Combat | -11 -10 -9 -9 -8 -7 -6 -------- Run | Yrd Mat Mat Min Mat Fac Fac Hostile Shots Fired 799 | . 54 190 15 215 208 117 Missed 243 | . 22 48 5 62 70 36 Damage Taken 7747 | . 338 1576 227 2128 1803 1675 Core 990 | . 63 249 69 253 150 206 Absorbed by Shields . | . . . . . . . Redirected to Shielding 275 | . . . . 192 46 37 Regen/Repaired (Parts) 227 | . . . . 227 . . Core Remaining (%) 65 | 100 74 . 20 54 78 . Volleys Fired 286 | . 12 97 9 44 54 70 Largest 4 | . 2 3 3 3 4 4 Hottest 192 | . 55 141 79 130 192 152 Shots Fired 805 | . 24 228 20 91 202 240 Gun 370 | . 20 151 12 32 12 143 Cannon 405 | . 4 71 . 56 190 84 Launcher 30 | . . 6 8 3 . 13 Special . | . . . . . . . Kinetic 697 | . 24 150 12 84 202 225 Thermal 58 | . . 54 . 4 . . Explosive 30 | . . 6 8 3 . 13 Electromagnetic 20 | . . 18 . . . 2 Robot Hit Streak 15 | . 2 15 3 5 8 13 Robot Miss Streak 10 | . 5 5 8 10 4 7 Penetration Max 1 | . . . . . . 1 Secondary Targets 1 | . . 1 . . . . Max Gunslinging Chain 1 | . . 1 . . . . Shots Hit Robots 493 | . 9 124 7 107 98 148 Core Hits 282 | . 8 70 17 59 44 84 Critical Kills 3 | . . 1 . 2 . . Critical Parts Destroyed 4 | . . . . 1 1 2 Critical Strikes 28 | . . 2 . 13 5 8 Meltdown 1 | . . 1 . . . . Destroy 2 | . . . . . . 2 Blast 16 | . . 1 . 5 4 6 Smash 5 | . . . . 4 1 . Sever 4 | . . . . 4 . . Melee Attacks 77 | . . 2 . 72 3 . Impact 18 | . . . . 15 3 . Slashing 59 | . . 2 . 57 . . Piercing . | . . . . . . . Sneak Attacks 12 | . . . . 12 . . Combat Hostiles . | . . . . . . . Follow-up Attacks . | . . . . . . . Damage Inflicted 15937 | . 135 2230 678 3889 2758 6247 Guns 3959 | . 82 930 81 260 184 2422 Cannons 5301 | . 35 800 . 772 2370 1324 Explosions 3739 | . . 461 597 145 114 2422 Melee 2791 | . . 28 . 2704 59 . Ramming 147 | . 18 11 . 8 31 79 Kinetic 8354 | . 117 853 81 1018 2554 3731 Thermal 1382 | . . 716 46 14 114 492 Explosive 3087 | . . 461 551 145 . 1930 Electromagnetic 176 | . . 161 . . . 15 Impact 832 | . . . . 773 59 . Slashing 1959 | . . 28 . 1931 . . Piercing . | . . . . . . . Highest Corruption 9 | . 1 1 1 . 9 . Average Corruption 2 | . 1 1 1 . 4 . Corruption Purged . | . . . . . . . Corruption Blocked . | . . . . . . . Effects 32 | . 1 1 1 . 29 . Message Errors 7 | . 1 . 1 . 5 . Matter Fused 9 | . . 1 . . 8 . Heat Flow Errors 6 | . . . . . 6 . Energy Discharges 2 | . . . . . 2 . Data Loss (minor) 1 | . . . . . 1 . Data Loss (major) 2 | . . . . . 2 . Misfires 3 | . . . . . 3 . Alerts 1 | . . . . . 1 . Weapon Failures 1 | . . . . . 1 . Overload Shots . | . . . . . . . Overflow Damage 708 | . . 18 . 376 75 239 Projectiles 91 | . . 2 . 4 16 69 Explosions 201 | . . 16 . 15 . 170 Melee 416 | . . . . 357 59 . Knockbacks 46 | . . 1 . 16 12 17 Impact 4 | . . . . 4 . . Kinetic 40 | . . 1 . 11 12 16 Secondary 2 | . . . . 1 . 1 Self-Inflicted Damage 591 | . 8 57 124 35 179 188 Shots 12 | . . 2 4 1 2 3 Rammed 14 | . . 1 . 1 3 9 Targets Rammed 26 | . 2 4 . 4 4 12 Kicked 8 | . 2 3 . 3 . . Crushed 4 | . . . . . 1 3 Highest Temperature 517 | . 6 517 15 36 266 414 Average Temperature 99 | . 6 145 6 13 59 50 Received Heat Transfer 2304 | . 141 315 36 1080 393 339 Effects 15 | . . 13 . . 1 1 Shutdowns 4 | . . 3 . . . 1 Energy Bleed 2 | . . 2 . . . . Interference 4 | . . 3 . . 1 . Short Circuit 1 | . . 1 . . . . Damage (minor) 1 | . . 1 . . . . Damage (major) 3 | . . 3 . . . . Siege Activations . | . . . . . . . Robots Corrupted 4 | . . . . 4 . . Combat Hostiles 2 | . . . . 2 . . Parts Fried 6 | . . . . 5 1 . Impact Corruptions 14 | . . . . 12 2 . Robots Melted 1 | . . 1 . . . . Combat Hostiles . | . . . . . . . Parts Melted 4 | . . 3 . . . 1 Heat Transferred 1732 | . . 1245 50 37 50 350 Parts Sabotaged 4 | . . . . . . 4 Parts Stolen . | . . . . . . . Parts Stripped . | . . . . . . . Power Chain Reactions . | . . . . . . . Alert | -11 -10 -9 -9 -8 -7 -6 ------- Run | Yrd Mat Mat Min Mat Fac Fac Peak Influence 1100 | . 175 656 600 1100 866 822 Initial 500 | . . 73 255 234 500 393 Average 553 | . 96 297 516 744 666 575 Maximum Alert Level 4 | . . 2 2 4 3 3 Low Security (%) 14 | 100 100 35 . . . . Level 1 11 | . . 38 7 8 . . Level 2 48 | . . 25 92 38 66 83 Level 3 24 | . . . . 48 33 16 Level 4 1 | . . . . 4 . . Level 5 . | . . . . . . . High Security . | . . . . . . . Max Security . | . . . . . . . Squads Dispatched 27 | . 1 5 . 7 7 7 Investigation 7 | . . 1 . 3 3 . Extermination 4 | . . . . . 3 1 Reinforcement 12 | . 1 3 . 3 . 5 Assault 4 | . . 1 . 1 1 1 Garrison . | . . . . . . . Intercept . | . . . . . . . Searches Triggered . | . . . . . . . Construction Impeded 3 | . . 1 . . . 2 Haulers Reinforced 3 | . . . . . . 3 Active Scanning Responses . | . . . . . . . Cargo Convoy Interrupts . | . . . . . . . Stealth | -11 -10 -9 -9 -8 -7 -6 --------- Run | Yrd Mat Mat Min Mat Fac Fac Distress Signals 7 | . 1 2 . 4 . . Communications Jammed . | . . . . . . . Distress Signals . | . . . . . . . Times Spotted 207 | . 15 50 11 64 38 29 Peak Tracking Total 9 | . 6 7 4 9 5 8 Tactical Retreats 21 | . 3 3 1 11 1 2 Traps | -11 -10 -9 -9 -8 -7 -6 ------- Run | Yrd Mat Mat Min Mat Fac Fac Traps Triggered 6 | . . 1 . 1 4 . Indirectly . | . . . . . . . Trap Hack Attempts . | . . . . . . . Triggered . | . . . . . . . Disarmed . | . . . . . . . Reprogrammed . | . . . . . . . Reused . | . . . . . . . Traps Extracted . | . . . . . . . Installed . | . . . . . . . Triggered . | . . . . . . . Machines | -11 -10 -9 -9 -8 -7 -6 ---------- Run | Yrd Mat Mat Min Mat Fac Fac Machines Disabled 19 | . . 4 1 3 5 6 Max in Single Turn 3 | . . 1 1 1 3 3 Machines Repaired . | . . . . . . . Machines Dismantled . | . . . . . . . Machines Sabotaged . | . . . . . . . Overloaded Fab Kills . | . . . . . . . Hacking | -11 -10 -9 -9 -8 -7 -6 --------- Run | Yrd Mat Mat Min Mat Fac Fac Machines Accessed 27 | . 1 5 . 10 9 2 Terminals 18 | . 1 5 . 5 5 2 Fabricators 2 | . . . . . 2 . Repair Stations 3 | . . . . 2 1 . Recycling Units 2 | . . . . 1 1 . Scanalyzers 1 | . . . . 1 . . Garrison Access 1 | . . . . 1 . . Total Hacks 76 | . 1 20 . 33 19 3 Successful 31 | . . 9 . 16 6 . Failed 45 | . 1 11 . 17 13 3 Catastrophic 10 | . 1 3 . 1 4 1 Database Lockouts . | . . . . . . . Manual 26 | . 1 8 . 9 5 3 Terminals 44 | . 1 20 . 13 7 3 Fabricators 5 | . . . . . 5 . Repair Stations 13 | . . . . 10 3 . Recycling Units 5 | . . . . 1 4 . Scanalyzers 8 | . . . . 8 . . Garrison Access 1 | . . . . 1 . . Terminal Hacks 15 | . . 9 . 4 2 . Record 4 | . . 2 . 2 . . Prototype ID Bank 1 | . . 1 . . . . Open DSF 2 | . . . . . 2 . Branch Access Points 2 | . . 1 . 1 . . Emergency Access Points 2 | . . 1 . 1 . . Alert Level 1 | . . 1 . . . . Unreport Threat 1 | . . 1 . . . . Investigation Status 1 | . . 1 . . . . Zone Layout 1 | . . 1 . . . . Fabricator Hacks 1 | . . . . . 1 . Load Schematic 1 | . . . . . 1 . Repair Station Hacks 5 | . . . . 4 1 . Scan Component 3 | . . . . 2 1 . Repair 2 | . . . . 2 . . Recycling Unit Hacks 3 | . . . . 1 2 . Process 1 | . . . . . 1 . Report Inventory 2 | . . . . 1 1 . Scanalyzer 6 | . . . . 6 . . Insert Component 3 | . . . . 3 . . Analyze 3 | . . . . 3 . . Garrison Access Hacks 1 | . . . . 1 . . Coupler Status 1 | . . . . 1 . . Unauthorized Hacks . | . . . . . . . Terminals . | . . . . . . . Fabricators . | . . . . . . . Repair Stations . | . . . . . . . Recycling Units . | . . . . . . . Scanalyzers . | . . . . . . . Garrison Access . | . . . . . . . Data Cores Recovered 1 | . . . . . . 1 Used 1 | . . . . . . 1 Hacking Detections 22 | . . 5 . 8 7 2 Full Trace Events 7 | . . 2 . 3 2 . Feedback Events . | . . . . . . . Feedback Blocked . | . . . . . . . Robot Schematics Acquired . | . . . . . . . Robots Built . | . . . . . . . Authchips . | . . . . . . . Time . | . . . . . . . Total Robot Build Rating . | . . . . . . . Part Schematics Acquired 3 | . . . . 3 . . Parts Built . | . . . . . . . Authchips . | . . . . . . . Time . | . . . . . . . Total Part Build Rating . | . . . . . . . Parts Repaired 2 | . . . . 2 . . Time 76 | . . . . 76 . . Parts Recycled . | . . . . . . . Recycled Matter 182 | . . . . . 182 . Retrieved Matter . | . . . . . . . Retrieved Components . | . . . . . . . Parts Scanalyzed 3 | . . . . 3 . . Part Schematics Acquired 3 | . . . . 3 . . Parts Damaged . | . . . . . . . Bothacking | -11 -10 -9 -9 -8 -7 -6 ------------ Run | Yrd Mat Mat Min Mat Fac Fac Used RIF Installer . | . . . . . . . Robots Hacked . | . . . . . . . Non-combat . | . . . . . . . Combat . | . . . . . . . Robot Hacks Applied . | . . . . . . . Relay Couplers Released . | . . . . . . . Fabnet Peak Effective % . | . . . . . . . Robots Rewired . | . . . . . . . Allies Hacked . | . . . . . . . Hacks Repelled . | . . . . . . . Allies | -11 -10 -9 -9 -8 -7 -6 -------- Run | Yrd Mat Mat Min Mat Fac Fac Total Allies . | . . . . . . . Largest Group . | . . . . . . . Highest-Rated Group . | . . . . . . . Highest-Rated Ally . | . . . . . . . Total Orders . | . . . . . . . Ally Attacks . | . . . . . . . Total Damage . | . . . . . . . Kills . | . . . . . . . Allies Corrupted . | . . . . . . . Allies Melted . | . . . . . . . Intel | -11 -10 -9 -9 -8 -7 -6 ------- Run | Yrd Mat Mat Min Mat Fac Fac Robot Analysis Total . | . . . . . . . Derelict Logs Recovered 1 | . . . 1 . . . Drone Launches . | . . . . . . . Drone Recoveries . | . . . . . . . Exploration | -11 -10 -9 -9 -8 -7 -6 ------------- Run | Yrd Mat Mat Min Mat Fac Fac Turns Passed 6551 | 85 314 1453 321 1937 1647 794 Spaces Moved 3447 | 74 225 780 236 954 917 261 Core 25 | 17 . 8 . . . . Treads 2195 | . . 188 . 829 917 261 Legs 1227 | 57 225 584 236 125 . . Wheels . | . . . . . . . Hover . | . . . . . . . Flight . | . . . . . . . Fastest Speed 50 | 50 120 120 120 120 145 148 Average Speed 143 | 103 120 133 120 143 150 206 Slowest Speed 400 | 120 120 400 120 260 232 305 Overloaded Moves . | . . . . . . . Propulsion Burnouts . | . . . . . . . Robots Hopped . | . . . . . . . Cave-ins Triggered . | . . . . . . . Exploration Rate (%) 34 | 4 47 45 43 62 33 6 Regions Visited 6 Branch Regions 1 Pre-discovered Areas . | . . . . . . . Known Exits Taken 2 | . . 1 . 1 . . Unknown Exits Taken 4 | 1 1 . 1 . 1 . Scrap Searched . | . . . . . . . Spaces Dug . | . . . . . . . Terrain Destroyed 312 | . . 28 93 44 33 114 Melee . | . . . . . . . Projectile 54 | . . . . 22 21 11 AOE 258 | . . 28 93 22 12 103 Terrain Rammed 1 | . 1 . . . . . Walls Destroyed . | . . . . . . . Machines Disabled . | . . . . . . . Actions | -11 -10 -9 -9 -8 -7 -6 --------- Run | Yrd Mat Mat Min Mat Fac Fac Total 4366 | 79 245 1012 256 1336 1060 378 Wait 294 | . 2 72 . 164 39 17 Move 3441 | 73 224 779 235 953 916 261 Hop . | . . . . . . . Pick Up 61 | . 1 12 3 24 15 6 Fast Attach 45 | 6 2 10 1 19 2 5 Attach 39 | . . 8 3 12 11 5 Detach 24 | . 1 7 1 14 1 . Swap 24 | . . 9 1 6 6 2 Drop 48 | . . 12 3 24 9 . Fire 286 | . 12 97 9 44 54 70 Melee 77 | . . 2 . 72 3 . Ram 1 | . 1 . . . . . Kick 8 | . 2 3 . 3 . . Crush 18 | . . 1 . 1 4 12 Escape Stasis . | . . . . . . . Rewire . | . . . . . . . Trap . | . . . . . . . Miscellaneous . | . . . . . . . Route ------- -11/Scrapyard -10/Materials -9/Materials (discovered 3 exits: *Mat / *Min x2) -9/Mines -8/Materials -7/Factory (discovered 3 exits: *Fac x2 / [*Sto]) -6/Factory History --------- Turn | Location | Event 2 | -11/Scrapyard | Discovered new exit (range 16) 86 | -11/Scrapyard | Entered Materials 311 | -10/Materials | Build established: Mutant 390 | -10/Materials | Discovered new exit (range 6) 400 | -10/Materials | Entered another Materials area 400 | -9/Materials | Evolved 2 slots: Utility x1, Weapon x1 835 | -9/Materials | Build established: Scavenger-Tank 899 | -9/Materials | Identified exit to Mines 1251 | -9/Materials | Discovered new exit (range 3) 1564 | -9/Materials | Core integrity fell below 50% 1600 | -9/Materials | First assault squad dispatched 1853 | -9/Materials | Entered Mines 2098 | -9/Mines | Discovered new exit (range 9) 2174 | -9/Mines | Entered Materials 2174 | -8/Materials | Evolved 2 slots: Propulsion x1, Utility x1 2175 | -8/Materials | Identified exit to Factory 2309 | -8/Materials | Lost 3 parts (1n1u1w) 2958 | -8/Materials | Build established: Mutant 3207 | -8/Materials | Repaired Imp. Weapon Shielding 3735 | -8/Materials | Repaired Adv. Treads 3774 | -8/Materials | First assault squad dispatched 4111 | -8/Materials | Entered Factory 4111 | -7/Factory | Evolved 2 slots: Utility x1, Weapon x1 4118 | -7/Factory | Identified exit to DSF 4443 | -7/Factory | Build established: Tank 4458 | -7/Factory | Discovered new exit (range 15) 4511 | -7/Factory | First assault squad dispatched 4957 | -7/Factory | Discovered new exit (range 16) 5443 | -7/Factory | Build established: Gunner 5606 | -7/Factory | Discovered new exit (range 15) 5758 | -7/Factory | Entered another Factory area 5758 | -6/Factory | Evolved 2 slots: Power x1, Propulsion x1 5936 | -6/Factory | Build established: Tank 6395 | -6/Factory | Lost 4 parts (2n1u1w) 6458 | -6/Factory | First assault squad dispatched 6552 | -6/Factory | Self-destructed Last Messages --------------- 06545_ Arc Projector blown off. 06545_ Hvy. Rocket Launcher blown off. 06545_ Gauss Rifle blown off. 06545_ Lgt. Nuclear Core blown off. 06545_ E-15 Imp destroyed. 06545_ U-05 Engineer lays Concrete. 06546_ K-01 Serf collects debris. 06546_ U-05 Engineer lays Concrete. 06548_ Acquired Hvy. Rocket Launcher. 06548_ Penetrated by Slug. 06548_ U-05 Engineer lays Concrete. 06549_ The unstable cave ceiling collapses. 06549_ U-05 Engineer lays Concrete. 06549_ G-50 Soldier destroyed. 06550_ K-01 Serf collects debris. 06550_ ALERT: Construction progress impeded, dispatching reinforcements to local area. 06551_ Missile Launcher destroyed. 06552_ Hvy. Rocket Launcher destroyed. 06552_ Core Shielding destroyed. Map ----- +----------------------------------------------------+ | ????????????????????????????????# =% = #? | | ????????????????????????????????# % = #? | | ???????????????????????????????## | #? | | ???????????????????????????????# ! ##? | | ???????????????????????????????# = ! ##? | | ???????????????????????????????## ! #? | | ???????????????????????????????# % "##? | | ???????????????????????????????## "#?? | | ???????????????????????????????# # "#?? | | ???????????????????????????????###+##""" ""###?? | | ?????????????????????????????????# # #?? | | ????????????????????? ???????????# # """"""""" #?? | | ?????????????????????A???????????# # #?? | | ????????????????????#/###????????# + """"""""" #?? | | ????????????????????# ????????# # #?? | | ????????????????????# ????????# # """"""""" #?? | | ????????????? ?????# = ????????# # ????? | | ????????????? ##### ????????# ##########????? | | ????????????] # # ######### ####??????????? | | ???????????? ^ R h #??????????? | | ???????????? ^ % h #??????????? | | ??????????? k #??????????? | | ??????????? #??????????? | | ?????????? #??????????? | | ??????????!! gu * #??????????? | | ??????????!! % l@[ #??????????? | | ??????????! % g =%[ #??????????? | | ?????????????### !=############??????????? | | ???????????????# #?????????????????????? | | ???????????????# ##?????????????????????? | | ???????????????#### #??????????????????????? | | ??????????????????#########??????????????????????? | | ?????????????????????????????????????????????????? | | ?????????????????????????????????????????????????? | | ?????????????????????????????????????????????????? | | ?????????????????????????????????????????????????? | | ?????????????????????????????????????????????????? | | ?????????????????????????????????????????????????? | | ?????????????????????????????????????????????????? | | ?????????????????????????????????????????????????? | | ?????????????????????????????????????????????????? | | ?????????????????????????????????????????????????? | | ?????????????????????????????????????????????????? | | ?????????????????????????????????????????????????? | | ?????????????????????????????????????????????????? | | ?????????????????????????????????????????????????? | | ?????????????????????????????????????????????????? | | ?????????????????????????????????????????????????? | | ?????????????????????????????????????????????????? | | ?????????????????????????????????????????????????? | +----------------------------------------------------+ Best States ------------- Heat Dissipation 64 Coolant Potential 50 Energy Generation 25 Energy Capacity 350 Matter Stores 300 Matter Capacity 300 Sight Range 16 Terrain Scan Density 10 Armor Coverage 225 Resistance: KI 20 Core Shielding 20 Utility Shielding 66 Weapon Shielding 66 Weapon Cycling 30 Phase Shifting 5 Evasion (%) 63 Melee Accuracy 5 Recoil Reduction 4 Matter Filtering 30 Particle Charging 15 Item Schematics ----------------- Adv. Assault Cannon | -8/Materials | Scanalyzed Adv. Treads | -8/Materials | Scanalyzed Nuclear Core | -8/Materials | Scanalyzed Robot Schematics ------------------ None Fabricated ------------ Nothing Alien Tech Used ----------------- None Achievements -------------- Dynamic Key Challenges ------------ None Game ------ Seed FireWeaponsDiverter Manual? 0 Play Time 02:05:46 Cumulative 13.6 hours Start 2024.10.12 @ 00:48:20 End 2024.10.13 @ 21:49:27 Sessions 7 Manual Loads 0 Difficulty Rogue Special Mode None Game No. 9 Rogue 3 Adventurer 6 Explorer 0 Win Type - Total 0 Types 0/0/0/0/0/0/0/0/0 Lore% 8 Gallery% 18 Achievement% 14 Wizard Run 0 Options --------- Layout 1 ASCII 0 Keyboard 0 Movement Arrows Keybinds 0 Fullscreen 2 Font 24/Tamsyn Map View 50x35 Zoom Use 0% Tactical HUD 1 Map Filters NONE Filters NONE Steam 1 RUN: 718966bb-c249-4957-ae62-49846706ea8b